bitfinex/quotes_ETHUSD_20251107
["timestamp","ask_amount","ask_price","bid_price","bid_amount"]
[1762473601293,0.002,3315.8,3315.7,1.13053]
[1762473601503,0.002,3315.8,3315.7,2.192934]
[1762473602475,0.002,3315.8,3315.7,1.29493]
[1762473602700,0.002,3315.8,3315.7,1.78743]
[1762473603210,0.002,3315.8,3315.7,1.81758954]
[1762473603412,0.002,3315.8,3315.7,2.22309354]
[1762473603713,0.002,3315.8,3315.7,2.192934]
[1762473604009,0.077,3315.8,3315.7,1.222234]
[1762473604208,0.5476,3315.8,3315.7,0.6569]
[1762473604407,0.5476,3315.8,3315.6,0.001]
[1762473604715,0.0047,3315.7,3315.6,0.001]
[1762473605106,0.002,3315.8,3315.6,0.59993303]
[1762473605301,0.002,3315.8,3315.6,0.12173303]
[1762473605498,0.075,3315.7,3315.6,0.12173303]
[1762473605685,0.002,3315.8,3315.7,0.4782]
[1762473606045,0.002,3315.8,3315.7,3.49415439]
[1762473606211,0.002,3315.8,3315.7,3.01595439]
[1762473606411,0.002,3315.8,3315.7,4.60212767]
[1762473606710,0.002,3315.8,3315.7,3.63142767]
[1762473606908,0.6658,3315.8,3315.7,3.01595439]
[1762473607100,0.6074,3315.8,3315.7,3.01595439]
[1762473607514,0.6658,3315.8,3315.7,3.01595439]
[1762473608120,0.6658,3315.8,3315.6,3.13777839]
[1762473608121,0.6658,3315.8,3315.6,0.12173303]
[1762473608294,0.5495,3315.7,3315.6,3.01697954]
[1762473608498,0.5495,3315.7,3315.6,0.001]
[1762473609481,0.5495,3315.7,3315.6,3.01704536]
[1762473610433,0.5495,3315.7,3315.6,0.001]
[1762473611020,0.5495,3315.7,3315.6,3.01704536]
[1762473612340,0.5495,3315.7,3315.6,0.001]
[1762473613826,0.4911,3315.7,3315.6,3.01704536]
[1762473614016,0.6415,3315.7,3315.6,3.01704536]
[1762473614423,0.6999,3315.7,3315.6,0.001]
[1762473615239,0.6999,3315.7,3315.6,3.01704536]
[1762473615419,0.6999,3315.7,3315.6,0.001]
[1762473616444,0.002,3315.8,3315.7,3.01595439]
[1762473616804,0.0549,3315.8,3315.7,3.01595439]
[1762473617013,0.002,3315.8,3315.7,3.01595439]
[1762473617505,0.0549,3315.8,3315.7,3.01595439]
[1762473617705,0.5471,3315.8,3315.7,3.01595439]
[1762473618111,0.0549,3315.8,3315.7,3.01595439]
[1762473618306,0.002,3315.8,3315.7,3.01595439]
[1762473619620,0.0549,3315.8,3315.7,3.01595439]
[1762473619844,0.5471,3315.8,3315.7,3.01595439]
[1762473620156,0.0549,3315.8,3315.7,3.01595439]
[1762473620655,0.0549,3315.8,3315.7,3.49775439]
[1762473620857,0.002,3315.8,3315.7,3.01595439]
[1762473621459,0.0549,3315.8,3315.7,3.01595439]
[1762473624152,0.002,3315.8,3315.7,4.92971879]
[1762473624312,0.002,3315.8,3315.7,5.04995925]
[1762473624513,0.6076,3315.8,3315.7,4.07135925]
[1762473624712,0.6657,3315.8,3315.6,0.001]
[1762473624916,0.55,3315.7,3315.6,0.001]
[1762473625319,0.55,3315.7,3315.6,3.01704536]
[1762473625955,0.55,3315.7,3315.6,0.001]
[1762473626157,0.55,3315.7,3315.6,3.01704536]
[1762473629059,0.55,3315.7,3315.6,0.001]
[1762473629742,3.56595439,3315.7,3315.6,0.001]
[1762473630257,1.2029,3315.7,3315.6,3.01704536]
[1762473630558,0.4919,3315.7,3315.6,3.01704536]
[1762473630856,0.8267,3315.8,3315.6,3.01704536]
[1762473630857,0.002,3315.8,3315.7,3.01595439]
[1762473631251,0.0549,3315.8,3315.7,3.01595439]
[1762473631451,0.0549,3315.8,3315.6,0.001]
[1762473631658,0.4986,3315.8,3315.7,3.01595439]
[1762473631973,0.0529,3315.7,3315.6,3.01704536]
[1762473632128,0.0529,3315.7,3315.6,0.001]
[1762473632331,0.0529,3315.7,3315.6,3.01704536]
[1762473633381,0.002,3315.8,3315.7,3.01595439]
[1762473633668,0.0549,3315.8,3315.7,3.01595439]
[1762473634572,0.5471,3315.8,3315.7,3.01595439]
[1762473635277,0.0549,3315.8,3315.7,3.01595439]
[1762473636278,0.002,3315.8,3315.7,3.49775439]
[1762473637357,0.002,3315.8,3315.7,4.50363551]
[1762473637561,0.002,3315.8,3315.7,4.02183551]
[1762473637880,0.002,3315.8,3315.7,3.49775439]
[1762473638082,0.0549,3315.8,3315.6,3.01702373]
[1762473638290,0.002,3315.8,3315.7,3.01595439]
[1762473638787,0.0593,3315.8,3315.7,3.01595439]
[1762473640213,0.002,3315.8,3315.7,3.01595439]
[1762473640413,0.002,3315.8,3315.7,3.49775439]
[1762473641087,0.002,3315.8,3315.7,4.69093174]
[1762473641402,0.002,3315.8,3315.7,4.84133174]
[1762473641589,0.002,3315.8,3315.7,5.09643574]
[1762473641906,0.002,3315.8,3315.7,4.3147722]
[1762473642112,0.002,3315.8,3315.7,4.8111722]
[1762473642316,0.002,3315.8,3315.7,5.5221722]
[1762473643105,0.002,3315.8,3315.6,0.001]
[1762473643106,0.0748,3315.8,3315.6,0.001]
[1762473643267,0.002,3315.8,3315.7,3.47215439]
[1762473643464,0.002,3315.8,3315.7,3.99871393]
[1762473644109,0.0988,3315.8,3315.7,3.01595439]
[1762473644906,0.002,3315.8,3315.7,3.01595439]
[1762473645089,0.002,3315.8,3315.7,3.48085439]
[1762473645292,0.002,3315.8,3315.7,4.43234959]
[1762473645613,0.002,3315.8,3315.7,3.96744959]
[1762473645772,0.002,3315.8,3315.7,3.01595439]
[1762473646275,0.0988,3315.8,3315.6,0.001]
[1762473646470,0.0988,3315.8,3315.7,3.01595439]
[1762473646784,0.002,3315.8,3315.7,3.01595439]
[1762473646984,0.099,3315.8,3315.7,3.01595439]
[1762473647172,0.5477,3315.8,3315.7,3.01595439]
[1762473647399,0.5477,3315.8,3315.6,0.001]
[1762473647597,0.0045,3315.7,3315.6,0.001]
[1762473648126,0.4567,3315.7,3315.6,0.001]
[1762473648427,0.4567,3315.7,3315.6,3.01704536]
[1762473648997,0.4567,3315.7,3315.6,0.001]
[1762473651199,0.0045,3315.7,3315.6,3.01704536]
[1762473651798,0.4567,3315.7,3315.6,3.01704536]
[1762473652629,0.4567,3315.7,3315.6,0.001]
[1762473653102,5.13787039,3315.7,3315.6,0.001]
[1762473663182,5.84887039,3315.7,3315.6,0.001]
[1762473663516,0.0045,3315.7,3315.6,0.001]
[1762473663680,4.18365439,3315.7,3315.6,0.001]
[1762473664064,5.44336639,3315.7,3315.6,0.001]
[1762473665003,5.84887039,3315.7,3315.6,0.001]
[1762473666071,2.376216,3315.7,3315.6,0.4659]
[1762473666303,2.064212,3315.7,3315.6,0.001]
[1762473666729,5.53236639,3315.7,3315.6,0.001]
[1762473667039,5.93787039,3315.7,3315.6,0.001]
[1762473670041,5.93787039,3315.7,3312.3,3.13982442]
[1762473670042,3.51279525,3315.0,3312.3,3.13982442]
[1762473670202,3.01704631,3314.5,3312.8,0.4603]
[1762473670401,5.48606231,3314.5,3312.9,0.1905]
[1762473670716,5.94066231,3314.5,3313.1,3.20432077]
[1762473670916,5.94066231,3314.5,3313.1,3.70172077]
[1762473671451,5.94066231,3314.5,3313.2,3.01817018]
[1762473671600,5.94066231,3314.5,3313.3,0.4974]
[1762473672241,6.09831162,3314.5,3313.3,0.4974]
[1762473672740,4.92971162,3314.5,3313.6,3.51520327]
[1762473672930,5.64371162,3314.5,3313.8,0.4974]
[1762473673125,5.64371162,3314.5,3313.6,3.0178561]
[1762473673333,6.09831162,3314.5,3313.5,3.0179323]
[1762473673628,5.64371162,3314.5,3313.5,3.0179323]
[1762473673839,5.64371162,3314.5,3313.9,0.4974]
[1762473674053,5.64371162,3314.5,3314.1,0.187]
[1762473675752,3.178,3316.4,3314.1,0.187]
[1762473675753,0.002,3315.8,3314.4,0.993]
[1762473675931,0.714,3315.7,3314.6,3.51154946]
[1762473676252,1.259712,3315.1,3314.6,0.4946]
[1762473676452,0.714,3315.0,3314.6,0.992]
[1762473676831,0.4636,3315.6,3314.9,0.4946]
[1762473677025,3.0162993,3315.4,3315.0,0.4946]
[1762473677363,0.714,3315.5,3315.0,0.4946]
[1762473677532,0.15757753,3315.7,3315.4,0.4946]
[1762473677730,0.002,3315.8,3315.6,0.4946]
[1762473677934,0.002,3315.8,3315.7,0.4946]
[1762473678130,0.002,3315.8,3315.7,3.51055439]
[1762473678367,0.002,3315.8,3315.7,4.7103562]
[1762473679271,0.002,3315.8,3315.7,0.992]
[1762473679423,0.002,3315.8,3315.7,4.00795439]
[1762473680523,0.002,3315.8,3315.7,0.992]
[1762473680721,0.002,3315.8,3315.7,4.00795439]
[1762473684288,0.002,3315.8,3315.7,4.03811393]
[1762473684579,0.002,3315.8,3315.7,4.7435374]
[1762473684940,0.002,3316.2,3316.1,3.0155906]
[1762473685144,0.002,3316.2,3316.1,3.6961906]
[1762473685466,0.002,3316.5,3316.4,3.01531781]
[1762473685641,0.002,3316.5,3316.4,3.54007098]
[1762473685981,0.002,3316.5,3316.4,4.71260638]
[1762473686680,0.714,3317.6,3316.8,3.01488189]
[1762473686884,0.714,3317.6,3317.5,0.6806]
[1762473687649,0.714,3317.6,3317.5,3.69491801]
[1762473688345,0.714,3317.6,3317.5,0.6806]
[1762473688783,0.664,3317.6,3317.5,1.178]
[1762473688984,0.664,3317.6,3317.5,4.19231801]
[1762473689445,0.1504,3317.7,3317.6,3.01422715]
[1762473689646,0.1504,3317.7,3317.6,4.00622715]
[1762473689838,0.4636,3319.5,3317.6,4.72682062]
[1762473690042,0.15742237,3318.8,3318.1,3.50831489]
[1762473690237,1.41713437,3318.8,3318.2,3.0136664]
[1762473690588,0.15742237,3318.8,3318.7,0.4946]
[1762473690882,0.15739527,3319.1,3318.7,3.50781617]
[1762473691083,0.575,3319.2,3318.9,3.01298992]
[1762473691295,0.575,3319.2,3318.8,4.00510657]
[1762473691679,0.575,3319.2,3318.8,0.992]
[1762473692596,0.1834712,3319.1,3318.8,0.992]
[1762473692798,0.1834712,3319.1,3319.0,3.0129557]
[1762473692957,0.575,3319.2,3319.0,0.4946]
[1762473693380,1.41709652,3319.5,3319.0,0.4946]
[1762473693568,0.715,3319.3,3319.0,3.50754707]
[1762473693777,0.715,3319.3,3319.0,0.4946]
[1762473693957,0.715,3319.3,3319.0,3.50750286]
[1762473694156,0.715,3319.3,3319.2,0.4946]
[1762473694358,0.15738452,3319.5,3319.2,0.4946]
[1762473694602,0.714,3319.4,3319.2,4.00471218]
[1762473695781,0.002,3319.5,3319.3,0.4946]
[1762473695992,0.002,3319.5,3319.4,0.4946]
[1762473696188,0.716,3319.5,3319.4,0.4946]
[1762473696407,0.716,3319.5,3319.4,0.992]
[1762473697176,1.2,3319.5,3318.9,0.186]
[1762473697477,1.2,3319.5,3319.0,3.01294631]
[1762473697679,0.716,3319.5,3319.1,3.50755417]
[1762473698096,0.716,3319.5,3319.1,0.4947]
[1762473698474,0.716,3319.5,3319.1,3.50755213]
[1762473698716,0.716,3319.5,3319.2,3.01276432]
[1762473698876,0.716,3319.5,3319.1,0.4947]
[1762473699372,0.716,3319.5,3319.1,3.50754928]
[1762473699595,0.716,3319.5,3319.2,3.01272905]
[1762473699818,0.716,3319.5,3319.4,0.4757]
[1762473701611,0.715,3319.5,3319.4,3.96509263]
[1762473701816,0.8654,3319.5,3319.4,3.96509263]
[1762473702011,0.1524,3319.5,3319.4,3.96509263]
[1762473702185,0.002,3319.5,3319.4,3.96509263]
[1762473703410,0.002,3319.5,3319.4,4.66287785]
[1762473703828,0.002,3319.5,3319.4,5.37587785]
[1762473704338,0.002,3319.5,3319.0,3.4897557]
[1762473704638,0.002,3319.5,3318.9,0.186]
[1762473704932,0.4844,3319.4,3318.4,3.01350048]
[1762473705234,3.01271749,3319.3,3318.6,3.01323347]
[1762473705388,3.01272379,3319.3,3318.6,3.01324925]
[1762473705729,0.714,3319.2,3318.7,3.01322268]
[1762473705930,0.714,3319.2,3319.0,3.01286736]
[1762473706091,0.714,3319.2,3319.1,0.9535]
[1762473707323,3.01451922,3319.5,3319.1,0.9535]
[1762473707555,1.259712,3319.4,3319.1,0.4767]
[1762473708297,3.01260614,3319.4,3319.1,0.4767]
[1762473708499,3.01260614,3319.4,3318.8,0.4768]
[1762473708693,3.01260614,3319.4,3318.8,3.48990736]
[1762473708899,4.27425506,3319.5,3318.9,3.01303739]
[1762473709094,1.261712,3319.5,3319.0,3.01294191]
[1762473709294,0.002,3319.5,3318.5,0.714]
[1762473709632,0.002,3319.5,3319.1,3.01281591]
[1762473710004,0.002,3319.5,3319.0,0.4768]
[1762473710005,3.01452424,3319.5,3319.0,0.4768]
[1762473710207,1.261712,3319.5,3319.0,3.48974276]
[1762473710835,1.261712,3319.5,3319.0,0.4768]
[1762473711131,3.01450978,3319.5,3319.0,0.4768]
[1762473711341,1.259712,3319.3,3319.0,0.4768]
[1762473711644,1.259712,3319.4,3319.0,3.48974636]
[1762473711947,0.002,3319.5,3319.1,3.01286316]
[1762473712241,0.002,3319.5,3319.0,3.48972195]
[1762473712242,0.1504,3319.3,3319.0,3.48972195]
[1762473712646,0.1504,3319.3,3319.0,0.4768]
[1762473712854,0.1504,3319.3,3318.8,3.01313077]
[1762473713144,0.1504,3319.3,3318.9,3.48983404]
[1762473713344,0.1504,3319.3,3318.9,3.48982405]
[1762473713546,0.1504,3319.3,3319.1,3.01283538]
[1762473713709,0.1504,3319.3,3319.2,3.48947416]
[1762473713910,0.1504,3319.3,3319.2,3.9964019]
[1762473714124,0.002,3319.5,3319.4,3.01259263]
[1762473714418,0.002,3319.5,3319.4,3.48929263]
[1762473714618,0.002,3319.5,3319.4,3.96609263]
[1762473714826,0.002,3319.5,3319.4,4.96523904]
[1762473717016,0.002,3319.5,3319.4,5.11563904]
[1762473718033,0.002,3319.5,3319.4,6.78085504]
[1762473718228,0.002,3319.9,3319.8,3.41773365]
[1762473718428,0.002,3319.9,3319.8,4.60843365]
[1762473718631,0.002,3319.9,3319.8,5.84730905]
[1762473719359,0.002,3319.9,3319.8,5.44180505]
[1762473720466,0.002,3319.9,3319.8,7.10702105]
[1762473722662,0.1143,3321.2,3320.1,0.6743]
[1762473722865,0.64169335,3321.5,3320.9,3.01114183]
[1762473723167,0.64169335,3321.5,3321.0,3.01110068]
[1762473723466,0.15729335,3321.5,3320.4,0.405504]
[1762473723633,0.4844,3322.3,3321.6,3.0105402]
[1762473723830,0.6416569,3322.1,3321.6,3.0105402]
[1762473724030,0.4881,3321.7,3321.6,3.0105402]
[1762473724261,0.4881,3321.7,3320.9,0.714]
[1762473724461,0.0613,3321.9,3320.9,0.714]
[1762473724462,0.4844,3321.8,3321.3,3.01086164]
[1762473724645,0.4844,3321.8,3321.3,3.01085199]
[1762473725158,0.4844,3321.8,3320.8,0.1976]
[1762473725159,0.065,3321.4,3320.8,0.1976]
[1762473725363,0.065,3321.4,3321.1,3.01098457]
[1762473725549,0.065,3321.4,3321.2,3.0108773]
[1762473725865,0.065,3321.4,3321.1,3.01101589]
[1762473726043,0.0048,3321.2,3320.8,0.1976]
[1762473726247,0.1249,3320.9,3320.6,3.01149716]
[1762473726458,0.1147,3321.0,3320.3,3.48853755]
[1762473726668,0.1147,3321.3,3320.4,0.42025376]
[1762473726872,0.1147,3321.3,3321.0,3.01112912]
[1762473727162,0.1147,3321.3,3321.0,3.0111092]
[1762473728066,0.1504,3321.1,3321.0,3.0111092]
[1762473728686,0.1504,3321.1,3321.0,3.48784122]
[1762473729048,0.1504,3321.1,3320.6,3.48828411]
[1762473729241,0.1504,3321.1,3320.8,3.0112629]
[1762473729470,0.1504,3321.1,3320.9,3.0112291]
[1762473729668,0.1504,3321.1,3320.8,3.01132257]
[1762473729847,0.1504,3321.1,3321.0,3.01114122]
[1762473730243,0.1504,3321.1,3321.0,3.48784122]
[1762473731797,0.1504,3321.1,3321.0,3.01114122]
[1762473731950,0.1504,3321.1,3321.0,3.50784122]
[1762473732152,0.1504,3321.1,3321.0,4.46087211]
[1762473732347,0.002,3321.3,3321.2,3.01095989]
[1762473732552,0.1524,3321.3,3321.2,3.01095989]
[1762473732893,0.002,3321.3,3321.2,3.98315989]
[1762473733048,0.002,3321.3,3321.2,4.79754419]
[1762473733462,0.002,3321.3,3321.2,4.82765378]
[1762473733831,0.002,3321.3,3321.2,4.79754419]
[1762473735156,0.002,3321.3,3321.2,3.82534419]
[1762473735460,0.002,3321.3,3321.2,4.32204419]
[1762473735659,0.002,3321.3,3321.2,4.79754419]
[1762473736692,0.002,3321.3,3321.2,4.82765378]
[1762473736891,0.002,3321.3,3321.2,5.51054419]
[1762473737957,1e-08,3321.6,3321.5,3.50738794]
[1762473738272,1e-08,3321.6,3321.5,4.91975503]
[1762473738466,1e-08,3321.6,3321.5,5.39525503]
[1762473738667,1e-08,3321.6,3321.5,7.0905779]
[1762473738978,1e-08,3321.6,3321.5,6.58497103]
[1762473739156,1e-08,3321.6,3321.5,4.91975503]
[1762473739357,1e-08,3321.6,3321.5,5.4263619]
[1762473739556,1e-08,3321.6,3321.5,6.65596703]
[1762473739992,1e-08,3321.6,3321.5,5.39625503]
[1762473740200,1e-08,3321.6,3321.5,4.20675503]
[1762473740881,1e-08,3321.6,3321.5,4.68225503]
[1762473742353,1e-08,3321.6,3321.5,3.71005503]
[1762473742557,0.54940001,3321.6,3321.4,3.01074598]
[1762473742795,0.4789,3321.3,3321.2,3.01095989]
[1762473743167,0.06630001,3321.6,3321.5,3.01068794]
[1762473743380,0.47890001,3321.6,3321.5,3.01068794]
[1762473743695,1e-08,3321.6,3321.5,3.01068794]
[1762473743895,1e-08,3321.6,3321.5,4.58503675]
[1762473744093,1e-08,3321.6,3321.5,4.73543675]
[1762473744293,1e-08,3321.6,3321.5,4.25993675]
[1762473744493,1e-08,3321.6,3321.5,3.76323675]
[1762473744699,0.54520001,3321.6,3321.3,3.01084066]
[1762473745001,0.0047,3321.4,3321.3,3.01084066]
[1762473745294,1e-08,3321.6,3321.5,3.01068794]
[1762473745859,1e-08,3321.6,3321.5,3.50738794]
[1762473746060,1e-08,3321.6,3321.5,4.18931203]
[1762473746310,1e-08,3321.6,3321.5,4.87520516]
[1762473746860,1e-08,3321.6,3321.5,5.35070516]
[1762473749165,1e-08,3321.6,3321.5,3.01068794]
[1762473749365,0.07490001,3321.6,3321.5,3.01068794]
[1762473750997,1e-08,3321.6,3321.5,3.01068794]
[1762473752067,1e-08,3321.6,3321.5,3.50738794]
[1762473752495,1e-08,3321.6,3321.5,4.22338794]
[1762473752726,0.07490001,3321.6,3321.3,3.72786457]
[1762473753029,0.07490001,3321.6,3321.5,3.01068794]
[1762473753738,1e-08,3321.6,3321.5,3.01068794]
[1762473753892,1e-08,3321.6,3321.5,3.50738794]
[1762473754687,1e-08,3321.6,3321.5,4.23090511]
[1762473755487,1e-08,3321.6,3321.5,4.73651198]
[1762473755694,1e-08,3321.6,3321.5,4.85680511]
[1762473757024,1e-08,3321.6,3321.5,4.70640511]
[1762473757229,1e-08,3321.6,3321.5,4.85680511]
[1762473759824,1e-08,3321.6,3321.5,4.88691198]
[1762473760024,1e-08,3321.6,3321.5,5.29241598]
[1762473760191,1e-08,3321.6,3321.5,9.57972798]
[1762473760396,1e-08,3321.6,3321.5,9.70002111]
[1762473765934,1e-08,3321.6,3321.5,9.54962111]
[1762473766503,1e-08,3322.3,3322.2,4.07735757]
[1762473766702,1e-08,3322.3,3322.2,6.75982027]
[1762473766906,1e-08,3322.3,3322.2,7.23872027]
[1762473767410,1e-08,3322.3,3322.2,10.41672027]
[1762473770748,1e-08,3322.3,3322.2,5.45701627]
[1762473770952,1e-08,3322.3,3322.2,6.17101627]
[1762473771853,1e-08,3322.3,3322.2,6.64991627]
[1762473772220,1e-08,3322.3,3322.2,7.05542027]
[1762473773037,1e-08,3322.3,3322.2,6.57652027]
[1762473773423,1e-08,3322.3,3322.2,7.05542027]
[1762473775761,1e-08,3322.3,3322.2,7.20582027]
[1762473776268,1e-08,3322.3,3322.2,10.37682027]
[1762473781172,1e-08,3322.3,3322.2,6.01292027]
[1762473781379,0.06880001,3322.3,3322.2,5.84191627]
[1762473781970,1e-08,3322.3,3322.2,5.84191627]
[1762473782353,0.06880001,3322.3,3322.2,5.13316557]
[1762473782973,1e-08,3322.3,3322.2,5.61166557]
[1762473783170,1e-08,3322.3,3322.2,6.09056557]
[1762473783761,1e-08,3322.3,3322.2,5.61166557]
[1762473783989,1e-08,3322.3,3322.2,6.09056557]
[1762473784183,1e-08,3322.3,3322.2,7.32008202]
[1762473784775,1e-08,3322.3,3322.2,7.72558602]
[1762473785107,1e-08,3322.3,3322.2,10.89658602]
[1762473787485,0.1504,3324.0,3322.2,7.88653245]
[1762473787687,0.1147,3324.1,3324.0,3.00842358]
[1762473787889,0.6599,3324.1,3324.0,3.72342358]
[1762473788500,0.1835,3324.1,3324.0,3.72342358]
[1762473788820,0.1147,3324.4,3324.3,3.00815209]
[1762473789173,0.6599,3324.4,3324.3,3.00815209]
[1762473790004,0.1876,3324.4,3324.3,3.00815209]
[1762473790423,0.6599,3324.4,3324.3,3.00815209]
[1762473790637,0.1876,3324.4,3324.3,3.00815209]
[1762473790799,0.6473,3324.4,3324.3,3.00815209]
[1762473791929,0.1876,3324.4,3324.3,3.00815209]
[1762473792116,0.4597,3324.7,3324.6,3.00788064]
[1762473792313,0.0894,3324.4,3324.3,3.00815209]
[1762473792720,0.5454,3324.4,3324.3,3.00815209]
[1762473795109,0.0894,3324.4,3324.3,3.00815209]
[1762473795509,0.0894,3324.4,3324.3,3.68129235]
[1762473797534,0.456,3324.7,3324.6,3.00788064]
[1762473797743,0.5491,3324.7,3324.6,3.00788064]
[1762473797950,0.0931,3324.7,3324.6,3.00788064]
[1762473799553,0.5455,3324.7,3324.6,3.00788064]
[1762473799761,0.1858,3325.2,3325.1,3.00742834]
[1762473799762,0.6455,3325.2,3325.1,3.00742834]
[1762473800053,0.7349,3325.2,3325.1,3.00742834]
[1762473801046,0.4597,3325.7,3325.6,3.00697618]
[1762473801254,0.1858,3328.0,3326.3,3.00634338]
[1762473801606,0.4153,3327.9,3326.4,1.1826583]
[1762473801717,0.4153,3327.9,3326.4,1.01963434]
[1762473801917,1.259712,3327.8,3326.9,3.00576351]
[1762473802138,0.4153,3327.9,3327.0,3.00562602]
[1762473802349,0.4153,3327.8,3326.9,0.72]
[1762473802518,0.1858,3328.0,3327.7,3.00507858]
[1762473802725,0.1858,3328.0,3327.9,3.00489798]
[1762473803028,0.1858,3328.0,3327.2,3.72650582]
[1762473803029,0.1858,3328.0,3327.3,0.1977]
[1762473803244,0.6011,3328.0,3327.9,3.00489798]
[1762473803564,0.57224654,3328.7,3328.2,3.00461496]
[1762473803715,0.4153,3328.7,3328.5,3.00430272]
[1762473803920,0.4153,3328.7,3327.8,0.721]
[1762473804354,0.4153,3328.7,3327.4,3.00529087]
[1762473804355,0.1858,3327.9,3327.7,0.721]
[1762473804653,0.1858,3327.9,3327.5,0.721]
[1762473804949,0.4153,3327.8,3327.5,3.72619963]
[1762473805352,0.1858,3327.9,3327.5,0.721]
[1762473805525,0.721,3328.8,3328.1,3.00467872]
[1762473805728,0.4153,3328.5,3327.5,0.721]
[1762473805922,0.4153,3328.5,3327.5,3.72622128]
[1762473806120,0.4153,3328.5,3328.0,3.00473588]
[1762473806318,0.4153,3328.5,3328.0,3.00479223]
[1762473807340,0.4153,3328.5,3328.1,3.00471479]
[1762473807745,0.4153,3328.5,3328.2,3.00456485]
[1762473807956,0.4153,3328.5,3328.1,3.00463542]
[1762473808157,0.4153,3328.5,3328.2,3.00460947]
[1762473808360,0.4153,3328.5,3328.3,3.00449269]
[1762473808860,0.4153,3328.4,3328.3,3.00449269]
[1762473809058,0.4153,3328.4,3328.2,3.00462038]
[1762473809256,0.4153,3328.4,3328.1,3.00468949]
[1762473809455,0.4153,3328.4,3328.0,0.1496]
[1762473809661,0.4153,3328.4,3328.3,3.00453685]
[1762473810966,0.4153,3328.4,3328.2,3.00459465]
[1762473811261,0.0031,3328.3,3328.0,0.1496]
[1762473811562,3.00488366,3328.0,3326.6,3.00602013]
[1762473811766,3.00507955,3327.7,3326.1,0.6691]
[1762473811963,0.72,3327.6,3326.4,3.00622899]
[1762473812151,3.00567587,3327.1,3326.3,3.0062841]
[1762473812349,1.979712,3327.5,3326.2,3.00639684]
[1762473812645,3.00571838,3327.0,3326.2,3.00635917]
[1762473812895,0.1147,3326.3,3325.6,0.721]
[1762473813056,0.721,3326.2,3324.7,0.1977]
[1762473813227,3.4218588,3326.1,3324.8,0.32055806]
[1762473813428,3.00670733,3325.9,3325.1,3.00736925]
[1762473813674,0.4153,3326.0,3325.2,3.00731397]
[1762473813895,3.42191897,3326.0,3325.2,3.00731397]
[1762473814034,0.4153,3326.0,3325.3,3.0072181]
[1762473814232,0.1147,3326.3,3324.8,0.32055806]
[1762473814439,0.722,3326.2,3326.1,3.00652415]
[1762473814733,0.1147,3326.3,3326.0,3.00661449]
[1762473815058,0.1147,3326.3,3326.1,3.00650816]
[1762473815231,0.1147,3326.3,3326.1,3.00651684]
[1762473815432,0.53,3326.3,3326.1,3.00651684]
[1762473816330,0.1147,3326.3,3326.2,3.00643376]
[1762473817472,1.374412,3327.0,3326.4,3.00623101]
[1762473817674,0.1147,3327.0,3326.5,3.0060855]
[1762473817874,0.722,3326.9,3326.1,0.1977]
[1762473818061,1.1373,3326.9,3325.7,0.722]
[1762473818378,1.1373,3326.9,3326.4,3.00624461]
[1762473818568,0.722,3326.9,3326.5,3.00615757]
[1762473818874,0.1147,3327.0,3325.9,0.4907]
[1762473819079,2.096412,3327.0,3326.4,3.0061864]
[1762473819280,0.8367,3327.0,3326.4,3.0061864]
[1762473819475,0.8367,3327.0,3326.1,0.1987]
[1762473819682,0.8367,3327.0,3326.6,3.00606044]
[1762473819979,0.8367,3327.0,3326.1,0.1987]
[1762473820178,0.8367,3327.0,3326.6,3.00606999]
[1762473820585,0.8367,3327.0,3326.4,3.00624746]
[1762473820586,1.252,3327.0,3326.4,3.00624746]
[1762473820759,0.4153,3326.9,3326.2,3.00636074]
[1762473821081,0.4153,3326.9,3326.4,3.00622494]
[1762473821484,0.1496,3326.6,3326.1,0.1506]
[1762473821690,0.1496,3326.6,3326.1,0.001]
[1762473821691,0.1496,3326.2,3326.1,0.001]
[1762473821854,0.8706,3326.2,3326.1,0.001]
[1762473822178,1.2859,3326.2,3326.1,0.001]
[1762473822482,1.2859,3326.2,3326.1,3.00752415]
[1762473822683,0.8706,3326.2,3326.1,3.00752415]
[1762473823286,0.1496,3326.2,3326.1,0.001]
[1762473823490,0.8716,3326.2,3326.1,3.00752415]
[1762473824193,0.8716,3326.2,3326.1,0.001]
[1762473824392,0.8716,3326.2,3326.1,3.00752415]
[1762473824560,0.8716,3326.2,3326.1,0.001]
[1762473824960,1.2869,3326.2,3326.1,0.001]
[1762473825419,0.8716,3326.2,3326.1,0.001]
[1762473825603,1.2869,3326.2,3326.1,3.00752415]
[1762473826300,1.2869,3326.2,3326.1,0.001]
[1762473826604,1.2869,3326.2,3326.1,3.00752415]
[1762473826822,1.2859,3326.2,3326.1,0.001]
[1762473826977,1.2859,3326.2,3326.1,3.00752415]
[1762473827307,1.2859,3326.2,3326.1,0.001]
[1762473827472,1.2859,3326.2,3326.1,3.00752415]
[1762473827668,1.2859,3326.2,3326.1,0.001]
[1762473829086,1.2859,3326.2,3326.1,3.00752415]
[1762473829294,1.2849,3326.2,3326.1,3.00752415]
[1762473829484,0.8696,3326.2,3326.1,3.00752415]
[1762473830010,0.1496,3326.2,3326.1,3.00752415]
[1762473830979,0.1496,3326.2,3326.1,3.68522415]
[1762473831310,0.72,3326.6,3326.2,3.00643376]
[1762473831514,0.1496,3326.6,3326.5,3.00616263]
[1762473831753,0.1147,3327.0,3326.9,3.00580119]
[1762473831911,0.8347,3327.0,3326.9,3.00580119]
[1762473832535,0.1147,3327.0,3326.9,3.00580119]
[1762473832732,4.26485204,3327.7,3326.9,3.00580119]
[1762473832917,0.72,3327.6,3326.9,3.00580119]
[1762473833126,1.1353,3327.6,3327.1,3.0055696]
[1762473833329,1.1353,3327.6,3327.4,3.00529292]
[1762473833330,0.72,3327.5,3327.4,3.00529292]
[1762473833629,1.1353,3327.5,3327.3,3.00541842]